bitfinex/quotes_BTCUSD_20240101
["timestamp","ask_amount","ask_price","bid_price","bid_amount"]
[1704094781521,0.28094419,42513.0,42512.0,2.42190502]
[1704094783080,0.28094419,42513.0,42512.0,2.25327991]
[1704094784977,0.28094419,42513.0,42512.0,2.42190502]
[1704094785184,0.28094419,42513.0,42512.0,2.25327991]
[1704094787066,0.28094419,42513.0,42512.0,2.42190502]
[1704094787284,0.28094419,42513.0,42512.0,2.25327991]
[1704094789076,0.28094419,42513.0,42512.0,2.42190502]
[1704094791740,0.28094419,42513.0,42512.0,2.42177763]
[1704094792180,0.28094419,42513.0,42512.0,2.2532688]
[1704094792825,0.28094419,42513.0,42512.0,2.42177763]
[1704094794310,0.28094419,42513.0,42512.0,2.34357923]
[1704094797335,0.28082334,42513.0,42512.0,2.34357923]
[1704094799680,0.28082334,42513.0,42512.0,2.51210637]
[1704094800188,0.28082334,42513.0,42512.0,2.34357923]
[1704094801481,0.28082334,42513.0,42512.0,2.51211266]
[1704094801920,0.28082334,42513.0,42512.0,2.34357923]
[1704094802127,0.28082334,42513.0,42512.0,2.51211345]
[1704094802345,0.28082334,42513.0,42512.0,2.51212032]
[1704094804339,0.28082334,42513.0,42512.0,2.51213507]
[1704094804546,0.28082334,42513.0,42512.0,2.34357923]
[1704094804970,0.28082334,42513.0,42512.0,2.34358192]
[1704094805190,0.28082334,42513.0,42512.0,1.66597899]
[1704094805408,0.28082334,42513.0,42512.0,2.34362582]
[1704094808073,0.28082334,42513.0,42512.0,2.51217193]
[1704094808279,0.28082334,42513.0,42512.0,2.4218615]
[1704094808692,0.28082334,42513.0,42512.0,2.25331539]
[1704094812132,0.28082334,42513.0,42512.0,2.4218615]
[1704094812369,0.28082334,42513.0,42512.0,2.25331539]
[1704094812550,0.28082334,42513.0,42512.0,2.4218615]
[1704094813235,0.28082334,42513.0,42512.0,2.34357392]
[1704094813666,0.28082334,42513.0,42512.0,2.42189995]
[1704094814082,0.28082334,42513.0,42512.0,2.34358935]
[1704094815184,0.28082334,42513.0,42512.0,2.25331539]
[1704094817970,0.28082334,42513.0,42512.0,2.34358461]
[1704094818193,0.28082334,42513.0,42512.0,2.25331539]
[1704094818634,0.28082334,42513.0,42512.0,2.15331539]
[1704094818847,0.28082334,42513.0,42512.0,1.62741539]
[1704094819059,0.28082334,42513.0,42512.0,1.76797796]
[1704094819752,0.28082334,42513.0,42512.0,1.74997796]
[1704094820176,0.28082334,42513.0,42512.0,1.76897796]
[1704094820388,0.28082334,42513.0,42512.0,1.91041539]
[1704094820594,0.28082334,42513.0,42512.0,2.04182418]
[1704094822500,0.28082334,42513.0,42512.0,1.36417735]
[1704094823026,0.28082334,42513.0,42512.0,1.2708905]
[1704094823484,0.28082334,42513.0,42512.0,1.15848171]
[1704094824536,0.28082334,42513.0,42512.0,1.25176856]
[1704094824750,0.28082334,42513.0,42512.0,1.00884364]
[1704094824968,0.28082334,42513.0,42512.0,0.96693769]
[1704094825389,0.28082334,42513.0,42512.0,0.91075603]
[1704094831869,0.28082334,42513.0,42512.0,1.00404288]
[1704094832081,0.93792334,42513.0,42512.0,1.00404288]
[1704094837395,0.93792334,42513.0,42512.0,0.89928288]
[1704094837858,0.93792334,42513.0,42512.0,0.99252288]
[1704094838084,0.93792334,42513.0,42512.0,0.87086942]
[1704094838902,0.93792334,42513.0,42512.0,0.85186942]
[1704094839106,0.93792334,42513.0,42512.0,0.83286942]
[1704094839514,0.93792334,42513.0,42512.0,0.85186942]
[1704094839919,0.93792334,42513.0,42512.0,0.83286942]
[1704094840094,0.93792334,42513.0,42512.0,0.75758257]
[1704094840297,0.93792334,42513.0,42512.0,0.75258257]
[1704094840805,0.93792334,42513.0,42512.0,0.77058257]
[1704094841445,0.93792334,42513.0,42512.0,0.09676]
[1704094841645,0.93792334,42513.0,42512.0,0.08002]
[1704094841646,2.01812334,42513.0,42512.0,0.08002]
[1704094841857,2.01873788,42513.0,42512.0,0.08002]
[1704094842068,2.01873788,42513.0,42512.0,0.031]
[1704094842274,2.04173788,42513.0,42512.0,0.031]
[1704094842447,2.04173788,42513.0,42512.0,0.018]
[1704094842789,2.04173788,42513.0,42512.0,0.032]
[1704094843006,2.04173788,42513.0,42512.0,0.014]
[1704094843222,2.04173788,42513.0,42505.0,0.38346]
[1704094843443,2.04173788,42513.0,42512.0,0.021]
[1704094843665,2.04173788,42513.0,42512.0,0.003]
[1704094843881,2.04273788,42513.0,42507.0,0.3729]
[1704094844028,2.04173788,42513.0,42508.0,0.30197711]
[1704094844245,2.04673788,42513.0,42509.0,0.06012]
[1704094845020,0.01,42511.0,42509.0,0.06012]
[1704094846553,0.01,42511.0,42509.0,0.06212]
[1704094846759,0.01,42511.0,42509.0,0.06112]
[1704094846972,1.7473,42511.0,42509.0,0.15440685]
[1704094847185,1.7473,42511.0,42509.0,0.15840685]
[1704094847408,1.7473,42511.0,42510.0,0.05244]
[1704094848914,1.7483,42511.0,42509.0,0.06136]
[1704094849367,1.7483,42511.0,42509.0,0.05736]
[1704094849587,1.7483,42511.0,42510.0,0.003]
[1704094849795,1.7473,42511.0,42510.0,0.003]
[1704094850213,1.7473,42511.0,42509.0,0.05836]
[1704094850678,0.00061454,42510.0,42509.0,0.06136]
[1704094850889,0.00061454,42510.0,42509.0,0.05736]
[1704094850890,0.03361454,42510.0,42509.0,0.05736]
[1704094851090,0.01,42507.0,42506.0,0.05892]
[1704094851312,0.01,42507.0,42501.0,0.19438]
[1704094851313,0.01,42505.0,42504.0,0.06522]
[1704094851514,0.01,42505.0,42504.0,0.29843711]
[1704094851746,0.01,42505.0,42504.0,0.23321711]
[1704094851966,0.01,42505.0,42504.0,0.28907711]
[1704094852389,0.01,42505.0,42504.0,0.09328685]
[1704094852597,0.01,42505.0,42504.0,0.10228685]
[1704094852937,1.7473,42505.0,42504.0,0.10228685]
[1704094853160,1.7473,42505.0,42504.0,0.11528685]
[1704094853375,1.7473,42505.0,42504.0,0.16826685]
[1704094853775,1.77091454,42505.0,42504.0,0.11528685]
[1704094856791,1.77091454,42505.0,42504.0,0.022]
[1704094860349,1.94800599,42505.0,42504.0,0.022]
[1704094860801,1.77091454,42505.0,42504.0,0.022]
[1704094869182,1.77091454,42505.0,42504.0,0.11528685]
[1704094871191,1.77091454,42505.0,42504.0,0.022]
[1704094872030,1.77091454,42505.0,42504.0,0.009]
[1704094872678,0.01061454,42503.0,42502.0,0.2589]
[1704094872894,0.03361454,42503.0,42502.0,0.2589]
[1704094873962,1.77091454,42503.0,42502.0,0.2589]
[1704094874820,1.77091454,42503.0,42502.0,0.2649]
[1704094875819,1.77091454,42503.0,42502.0,0.31956]
[1704094876041,1.77091454,42503.0,42502.0,0.32156]
[1704094877201,1.77091454,42503.0,42502.0,0.2669]
[1704094880815,1.94800599,42503.0,42502.0,0.2669]
[1704094881237,1.77091454,42503.0,42502.0,0.2669]
[1704094898081,2.01851454,42503.0,42502.0,0.2669]
[1704094898304,2.01851454,42503.0,42502.0,0.008]
[1704094898519,2.38851926,42503.0,42502.0,0.008]
[1704094898963,2.38851926,42503.0,42502.0,0.006]
[1704094899189,2.38860693,42503.0,42502.0,0.006]
[1704094899404,2.62996335,42503.0,42502.0,0.006]
[1704094899624,2.25987096,42503.0,42500.0,0.1]
[1704094899837,0.34284075,42501.0,42500.0,0.1]
[1704094900043,0.36584075,42501.0,42500.0,0.1]
[1704094900255,0.33762488,42501.0,42500.0,0.1]
[1704094900464,0.28121454,42501.0,42500.0,0.1]
[1704094900678,2.01851454,42501.0,42500.0,0.1]
[1704094900889,2.25987096,42501.0,42500.0,0.1]
[1704094901102,2.35549717,42501.0,42500.0,0.101]
[1704094901331,2.32727546,42501.0,42500.0,0.101]
[1704094901549,2.32727623,42501.0,42500.0,0.101]
[1704094903099,2.35549717,42501.0,42500.0,0.101]
[1704094905305,2.27087096,42501.0,42500.0,0.101]
[1704094905513,2.32725837,42501.0,42500.0,0.101]
[1704094907388,2.27087096,42501.0,42500.0,0.101]
[1704094907601,2.02951454,42501.0,42500.0,0.101]
[1704094907826,2.08590195,42501.0,42500.0,0.101]
[1704094909711,2.32951454,42501.0,42500.0,0.101]
[1704094909923,2.69839403,42501.0,42500.0,0.101]
[1704094911400,2.41407779,42501.0,42500.0,0.101]
[1704094911910,1.78191454,42501.0,42500.0,0.101]
[1704094921348,1.83828216,42501.0,42500.0,0.101]
[1704094921816,1.78191454,42501.0,42500.0,0.101]
[1704094923362,1.78191454,42501.0,42500.0,0.19428685]
[1704094924473,1.78191454,42501.0,42500.0,0.101]
[1704094924867,1.78191454,42501.0,42500.0,0.19428685]
[1704094924993,1.83828216,42501.0,42500.0,0.19428685]
[1704094925824,2.08588216,42501.0,42500.0,0.101]
[1704094926037,2.27087096,42501.0,42500.0,0.101]
[1704094926243,2.64090743,42501.0,42500.0,0.101]
[1704094926677,2.64090743,42501.0,42500.0,0.19428685]
[1704094928148,2.39955101,42501.0,42500.0,0.19428685]
[1704094928366,2.63276812,42501.0,42500.0,0.19428685]
[1704094929243,2.5199222,42501.0,42500.0,0.19428685]
[1704094929447,2.63276589,42501.0,42500.0,0.19428685]
[1704094930268,2.5199222,42501.0,42500.0,0.19428685]
[1704094930474,2.76127862,42501.0,42500.0,0.19428685]
[1704094930679,2.5199222,42501.0,42500.0,0.19428685]
[1704094931523,2.66087002,42501.0,42500.0,0.19428685]
[1704094931735,4.41907002,42501.0,42500.0,0.19428685]
[1704094936774,4.41907002,42501.0,42500.0,0.101]
[1704094940368,4.41914194,42501.0,42500.0,0.101]
[1704094941276,4.27806221,42501.0,42500.0,0.101]
[1704094941904,4.41914742,42501.0,42500.0,0.101]
[1704094942355,4.27806221,42501.0,42500.0,0.101]
[1704094945209,4.27806221,42501.0,42500.0,0.19428685]
[1704094946723,4.27806221,42501.0,42500.0,0.18928685]
[1704094947103,4.51941863,42501.0,42500.0,0.18928685]
[1704094948486,4.27806221,42501.0,42500.0,0.18928685]
[1704094948936,4.27806221,42501.0,42500.0,0.096]
[1704094950220,4.15771746,42501.0,42500.0,0.096]
[1704094951279,4.15771746,42501.0,42500.0,0.0927]
[1704094951483,4.15771746,42501.0,42500.0,0.0907]
[1704094951902,4.15771746,42501.0,42500.0,0.0887]
[1704094960359,4.0448451,42501.0,42500.0,0.0887]
[1704094960576,4.18594072,42501.0,42500.0,0.0887]
[1704094962234,4.0448451,42501.0,42500.0,0.0887]
[1704094963032,4.10194356,42501.0,42500.0,0.0887]
[1704094963462,2.34374356,42501.0,42500.0,0.0887]
[1704094963815,2.52800152,42501.0,42500.0,0.0887]
[1704094964029,2.58511749,42501.0,42500.0,0.0887]
[1704094964676,2.52800152,42501.0,42500.0,0.0887]
[1704094966032,2.58511259,42501.0,42500.0,0.0887]
[1704094966702,2.52800152,42501.0,42500.0,0.0887]
[1704094969473,2.2866451,42501.0,42500.0,0.0887]
[1704094972442,1.2064451,42501.0,42500.0,0.0887]
[1704094973866,1.26355317,42501.0,42500.0,0.0887]
[1704094974477,1.38104101,42501.0,42500.0,0.0887]
[1704094974707,1.26355317,42501.0,42500.0,0.0887]
[1704094975358,1.47656419,42501.0,42500.0,0.0887]
[1704094975587,1.59476911,42501.0,42500.0,0.0887]
[1704094975784,1.47656419,42501.0,42500.0,0.0887]
[1704094976438,1.2064451,42501.0,42500.0,0.0887]
[1704094983896,1.2635461,42501.0,42500.0,0.0887]
[1704094985560,1.2064451,42501.0,42500.0,0.0887]
[1704094985819,1.26355021,42501.0,42500.0,0.0887]
[1704094986499,1.2064451,42501.0,42500.0,0.0887]
[1704094987809,0.9588451,42501.0,42500.0,0.0887]
[1704094993375,1.01594466,42501.0,42500.0,0.0887]
[1704094995504,0.9588451,42501.0,42500.0,0.0887]
[1704094998409,1.10008856,42501.0,42500.0,0.0887]
[1704094998790,0.9588451,42501.0,42500.0,0.0887]
[1704094999819,1.01593544,42501.0,42500.0,0.0887]
[1704095011801,1.01593544,42501.0,42498.0,0.257]
[1704095011802,0.01061454,42499.0,42498.0,0.257]
[1704095012009,0.1466229,42499.0,42498.0,0.257]
[1704095012216,0.40375346,42499.0,42498.0,0.257]
[1704095013029,0.43200556,42499.0,42498.0,0.257]
[1704095013241,0.43600556,42499.0,42498.0,0.257]
[1704095013666,0.44300556,42499.0,42498.0,0.258]
[1704095014089,0.35886009,42499.0,42498.0,0.258]
[1704095014299,0.3017451,42499.0,42498.0,0.258]
[1704095016005,0.4272397,42499.0,42498.0,0.258]
[1704095016210,0.3017451,42499.0,42498.0,0.258]
[1704095018770,0.44298213,42499.0,42498.0,0.258]
[1704095019195,0.44297842,42499.0,42498.0,0.258]
[1704095020043,0.3017451,42499.0,42498.0,0.258]
[1704095020242,0.44297579,42499.0,42498.0,0.258]
[1704095023381,0.4108575,42499.0,42498.0,0.258]
[1704095030222,0.26963008,42499.0,42498.0,0.258]
[1704095030770,0.4108575,42499.0,42498.0,0.258]
[1704095033064,0.38260399,42499.0,42498.0,0.258]
[1704095033471,0.38260465,42499.0,42498.0,0.258]
[1704095033682,0.4108575,42499.0,42498.0,0.258]
[1704095037290,0.26963008,42499.0,42498.0,0.258]
[1704095037530,0.36785687,42499.0,42498.0,0.258]
[1704095037752,0.50077463,42499.0,42498.0,0.258]
[1704095038166,0.36785687,42499.0,42498.0,0.258]
[1704095042863,0.36688278,42499.0,42498.0,0.258]
[1704095044604,0.49980054,42499.0,42498.0,0.258]
[1704095046107,0.36688278,42499.0,42498.0,0.258]
[1704095046340,1.01713307,42499.0,42498.0,0.258]
[1704095046584,1.73146492,42499.0,42498.0,0.258]
[1704095046804,1.56203174,42499.0,42498.0,0.258]
[1704095047020,2.21913174,42499.0,42498.0,0.258]
[1704095047245,2.21513174,42499.0,42498.0,0.258]
[1704095047461,2.21513174,42499.0,42498.0,0.259]
[1704095047462,2.22313174,42499.0,42498.0,0.259]
[1704095047677,2.67873074,42499.0,42498.0,0.257]
[1704095048150,2.68673074,42499.0,42498.0,0.258]
[1704095048379,2.68673074,42499.0,42498.0,0.26]
[1704095048380,2.58868717,42499.0,42498.0,0.26]
[1704095048822,2.57468717,42499.0,42498.0,0.258]
[1704095049334,2.70060411,42499.0,42498.0,0.26]
[1704095049553,2.588649,42499.0,42498.0,0.26]
[1704095052080,2.41931665,42499.0,42498.0,0.26]
[1704095053456,2.588649,42499.0,42498.0,0.26]
[1704095056785,2.58573021,42499.0,42498.0,0.26]
[1704095057205,2.11513121,42499.0,42498.0,0.26]
[1704095057449,2.58573021,42499.0,42498.0,0.26]
[1704095058138,2.58573021,42499.0,42498.0,0.35328685]
[1704095058352,2.58573021,42499.0,42498.0,0.26]
[1704095062444,2.11513121,42499.0,42498.0,0.26]
[1704095063390,1.94586312,42499.0,42498.0,0.26]
[1704095063629,2.41646212,42499.0,42498.0,0.26]
[1704095068330,2.58573021,42499.0,42498.0,0.26]
[1704095070320,2.41646212,42499.0,42498.0,0.26]
[1704095070750,2.58573021,42499.0,42498.0,0.26]
[1704095070982,2.41646212,42499.0,42498.0,0.26]
[1704095071406,2.58573021,42499.0,42498.0,0.26]
[1704095073124,2.61573021,42499.0,42498.0,0.26]
[1704095073347,2.72512144,42499.0,42498.0,0.26]
[1704095074022,0.01061454,42497.0,42496.0,0.2351]
[1704095074210,0.57157269,42497.0,42496.0,0.2351]
[1704095074455,1.22567737,42497.0,42496.0,0.2351]
[1704095075781,1.23467737,42497.0,42496.0,0.2361]
[1704095076367,1.25067737,42497.0,42496.0,0.2381]
[1704095076570,1.36325616,42497.0,42496.0,0.2381]
[1704095077616,2.15829311,42497.0,42496.0,0.2381]
[1704095077817,1.89059112,42497.0,42496.0,0.003]
[1704095078035,1.99961085,42497.0,42496.0,0.003]
[1704095079826,2.04515085,42497.0,42496.0,0.003]
[1704095084206,1.99961085,42497.0,42496.0,0.003]
[1704095084423,2.07422837,42497.0,42496.0,0.003]
[1704095084851,2.12048837,42497.0,42496.0,0.003]
[1704095087846,2.14938305,42497.0,42496.0,0.003]
[1704095088092,2.33980966,42497.0,42496.0,0.003]
[1704095088555,0.01061454,42496.0,42495.0,0.1]
[1704095088784,2.21597827,42496.0,42495.0,0.1]
[1704095089022,2.27639827,42496.0,42495.0,0.1]
[1704095089890,2.30439827,42496.0,42495.0,0.103]
[1704095097925,1.83376627,42496.0,42495.0,0.103]
[1704095098480,2.30439827,42496.0,42495.0,0.103]
[1704095098696,1.83376627,42496.0,42495.0,0.103]
[1704095099527,2.30439827,42496.0,42495.0,0.103]
[1704095102227,1.83376627,42496.0,42495.0,0.103]
[1704095102669,2.30439827,42496.0,42495.0,0.103]
[1704095107711,2.28639827,42496.0,42495.0,0.101]
[1704095107923,2.782582,42496.0,42495.0,0.103]
[1704095108137,2.772582,42496.0,42495.0,0.102]
[1704095108827,2.790582,42496.0,42495.0,0.104]
[1704095109058,0.48130154,42491.0,42486.0,0.194]
[1704095109291,1.22757745,42491.0,42486.0,0.194]
[1704095109541,1.72707685,42491.0,42486.0,0.194]
[1704095110260,1.74507685,42491.0,42490.0,0.102]
[1704095110720,1.79043685,42491.0,42490.0,0.102]
[1704095110929,1.76207685,42491.0,42490.0,0.104]
[1704095111142,1.80809685,42491.0,42490.0,0.104]
[1704095111562,2.28284733,42491.0,42490.0,0.104]
[1704095111769,2.30030472,42491.0,42490.0,0.104]
[1704095116497,2.07315424,42491.0,42490.0,0.104]
[1704095117480,2.10094235,42491.0,42490.0,0.104]
[1704095118703,2.22520235,42491.0,42490.0,0.104]
[1704095118909,2.41566637,42491.0,42490.0,0.104]
[1704095119135,2.60005695,42491.0,42490.0,0.104]
[1704095119308,2.84141337,42491.0,42490.0,0.104]
[1704095120428,2.84141337,42491.0,42485.0,0.1]
[1704095120429,0.58821454,42486.0,42485.0,0.1]
[1704095120633,3.17190843,42486.0,42485.0,0.1]
[1704095120945,3.26064843,42486.0,42485.0,0.1]
[1704095121150,3.44907272,42486.0,42485.0,0.1]
[1704095121554,3.45907272,42486.0,42485.0,0.101]
[1704095121806,3.47707272,42486.0,42485.0,0.101]
[1704095122141,3.45907272,42486.0,42485.0,0.1]
[1704095122566,3.26862453,42486.0,42485.0,0.1]
[1704095122774,3.57756772,42486.0,42485.0,0.1]
[1704095122983,2.86720108,42486.0,42485.0,0.101]
[1704095123201,2.78365459,42486.0,42485.0,0.101]
[1704095123416,2.80165459,42486.0,42485.0,0.101]
[1704095123828,2.97077392,42486.0,42485.0,0.101]
[1704095124269,3.15948516,42486.0,42485.0,0.101]
[1704095124713,2.97077392,42486.0,42485.0,0.101]
[1704095124929,2.71980459,42486.0,42485.0,0.101]
[1704095125140,2.10920459,42486.0,42485.0,0.101]
[1704095125361,1.62827782,42486.0,42485.0,0.101]
[1704095125575,1.23693165,42486.0,42485.0,0.101]
[1704095126100,1.32147981,42486.0,42485.0,0.101]
[1704095126310,1.30347981,42486.0,42485.0,0.101]
[1704095126528,1.34447981,42486.0,42485.0,0.101]
[1704095126742,1.32647981,42486.0,42485.0,0.1]
[1704095126947,1.32647981,42486.0,42485.0,0.101]
[1704095127381,1.32647981,42486.0,42485.0,0.1]
[1704095127382,1.36024107,42486.0,42485.0,0.1]
[1704095127594,0.71814107,42486.0,42485.0,0.101]
[1704095129971,0.74814107,42486.0,42485.0,0.101]
[1704095130380,0.95932353,42486.0,42485.0,0.101]
[1704095130605,0.9877825,42486.0,42485.0,0.101]
[1704095130751,1.10683566,42486.0,42485.0,0.101]
[1704095130960,1.15381566,42486.0,42485.0,0.101]
[1704095131371,1.40141566,42486.0,42485.0,0.101]
[1704095131584,1.61798114,42486.0,42485.0,0.101]
[1704095131798,2.08872414,42486.0,42485.0,0.101]
[1704095132465,2.09474365,42486.0,42485.0,0.101]
[1704095135014,2.06098239,42486.0,42485.0,0.101]
[1704095135632,1.68448339,42486.0,42485.0,0.101]
[1704095136483,2.15522639,42486.0,42485.0,0.101]
[1704095137809,1.85522639,42486.0,42485.0,0.101]
[1704095138890,1.80824639,42486.0,42485.0,0.101]
[1704095139425,1.85414639,42486.0,42485.0,0.101]
[1704095139646,1.56064639,42486.0,42485.0,0.101]
[1704095140081,1.61164639,42486.0,42485.0,0.101]
[1704095140550,1.56064639,42486.0,42485.0,0.101]
[1704095140750,1.80824639,42486.0,42485.0,0.101]
[1704095144559,1.85420639,42486.0,42485.0,0.101]
[1704095146393,1.80824639,42486.0,42485.0,0.101]
[1704095148855,1.85456639,42486.0,42485.0,0.101]
[1704095149271,1.80824639,42486.0,42485.0,0.101]
[1704095149867,1.85396639,42486.0,42485.0,0.101]
[1704095150560,1.80824639,42486.0,42485.0,0.101]
[1704095150768,1.85366639,42486.0,42485.0,0.101]
[1704095152096,1.80824639,42486.0,42485.0,0.101]
[1704095152305,1.85672639,42486.0,42485.0,0.101]
[1704095152508,2.02584572,42486.0,42485.0,0.101]
[1704095152953,1.97736572,42486.0,42485.0,0.101]
[1704095155374,2.18308929,42486.0,42485.0,0.101]
[1704095155992,1.97736572,42486.0,42485.0,0.101]
[1704095158604,2.24786033,42486.0,42485.0,0.101]
[1704095161856,2.24786033,42486.0,42485.0,0.10088515]
[1704095162067,2.00026033,42486.0,42485.0,0.10088515]
[1704095163600,1.831141,42486.0,42485.0,0.10088515]
[1704095163974,1.883581,42486.0,42485.0,0.10088515]
[1704095164874,1.831141,42486.0,42485.0,0.10088515]
[1704095167517,1.06690339,42486.0,42485.0,0.10088515]
[1704095167759,1.22285193,42486.0,42485.0,0.10088515]
[1704095168242,0.57391812,42486.0,42485.0,0.10088515]
[1704095168458,0.03963405,42486.0,42485.0,0.10088515]
[1704095168685,0.04901951,42486.0,42485.0,0.10088515]
[1704095168913,0.04901951,42486.0,42485.0,0.15458515]
[1704095169154,0.6571,42491.0,42485.0,0.49000772]
[1704095169418,0.00584348,42486.0,42485.0,0.60743457]
[1704095169665,0.00584348,42486.0,42485.0,0.43630772]
[1704095169666,0.009,42486.0,42485.0,0.43630772]
[1704095169873,0.009,42486.0,42485.0,0.52132772]
[1704095170101,0.75192254,42496.0,42489.0,0.09938546]
[1704095170376,0.75192254,42496.0,42490.0,0.42870942]
[1704095170377,0.09482254,42496.0,42490.0,0.42870942]
[1704095170580,0.00061454,42496.0,42490.0,0.51270942]
[1704095170848,0.00061454,42498.0,42492.0,0.00282]
[1704095171270,0.00061454,42497.0,42492.0,0.00282]
[1704095172388,0.007,42496.0,42492.0,0.00282]
[1704095172832,0.006,42497.0,42494.0,0.00282]
[1704095173051,0.014,42497.0,42494.0,0.00282]
[1704095173269,0.014,42497.0,42494.0,0.0783]
[1704095173488,0.008,42497.0,42494.0,0.0783]
[1704095173694,0.70061454,42499.0,42494.0,0.0783]
[1704095173911,0.70061454,42499.0,42496.0,0.00282]
[1704095174204,0.70061454,42499.0,42496.0,0.09328685]
[1704095174413,0.70061454,42499.0,42496.0,0.15088685]
[1704095174414,0.7,42499.0,42496.0,0.15088685]
[1704095174641,0.7,42499.0,42496.0,0.09328685]
[1704095174824,0.001,42496.0,42494.0,0.06726]
[1704095175079,0.7,42499.0,42494.0,0.00282]
[1704095175301,0.7,42499.0,42497.0,0.0453]
[1704095175486,0.7,42499.0,42496.0,0.004]
[1704095175749,0.7,42499.0,42494.0,0.06888]
[1704095175968,0.7,42499.0,42494.0,0.08088]
[1704095176183,0.001,42496.0,42494.0,0.08088]
[1704095176410,0.001,42496.0,42495.0,0.06954]
[1704095176832,0.001,42496.0,42495.0,0.23321711]
[1704095177052,0.001,42496.0,42495.0,0.30467711]
[1704095177938,0.7,42499.0,42495.0,0.30467711]
[1704095178150,0.001,42496.0,42495.0,0.30467711]
[1704095178379,0.7,42499.0,42495.0,0.23321711]
[1704095178620,0.7,42499.0,42495.0,0.29867711]
[1704095178814,0.002,42496.0,42495.0,0.25121711]
[1704095179274,0.002,42496.0,42495.0,0.31697711]
[1704095179492,0.001,42496.0,42495.0,0.30897711]
[1704095179668,0.001,42496.0,42495.0,0.31197711]
[1704095180039,0.7,42499.0,42495.0,0.29897711]
[1704095180454,0.7,42499.0,42496.0,0.06804]
[1704095181295,0.701,42499.0,42496.0,0.06804]
[1704095181493,0.7,42499.0,42496.0,0.06804]
[1704095181949,0.7,42499.0,42496.0,0.07204]
[1704095183234,0.7,42499.0,42496.0,0.07404]
[1704095183441,0.7,42499.0,42497.0,0.05982]
[1704095184963,0.7,42499.0,42497.0,0.003]
[1704095185184,0.7,42499.0,42498.0,0.0684]
[1704095185405,0.7,42499.0,42498.0,0.53260257]
[1704095185627,0.7,42499.0,42498.0,0.73792257]
[1704095185831,0.7,42499.0,42498.0,0.63526257]
[1704095186287,0.7,42499.0,42498.0,0.73036257]
[1704095186502,0.7,42499.0,42498.0,0.63526257]
[1704095187602,0.7,42499.0,42498.0,0.63826257]
[1704095188444,0.7,42499.0,42498.0,0.73498257]
[1704095188685,0.7,42499.0,42498.0,0.73798257]
[1704095189108,0.7,42499.0,42498.0,0.73498257]
[1704095189594,0.7,42499.0,42498.0,0.73798257]
[1704095190033,0.7,42499.0,42498.0,0.63826257]
[1704095190482,0.7,42499.0,42498.0,0.73300257]
[1704095190691,0.7,42499.0,42498.0,0.63526257]
[1704095190907,0.7,42499.0,42498.0,0.73966257]
[1704095191088,0.7,42499.0,42498.0,0.73566257]
[1704095191346,0.701,42499.0,42498.0,0.74366257]
[1704095191767,0.702,42499.0,42498.0,0.75166257]
[1704095191989,0.702,42499.0,42498.0,0.65326257]
[1704095192165,0.702,42499.0,42498.0,0.75238257]
[1704095192369,0.702,42499.0,42498.0,0.65326257]
[1704095192588,0.702,42499.0,42498.0,0.75106257]
[1704095192797,0.702,42499.0,42498.0,0.65326257]
[1704095193229,0.702,42499.0,42498.0,0.74734257]
[1704095193438,0.702,42499.0,42498.0,0.65326257]
[1704095194293,0.702,42499.0,42498.0,0.74878257]
[1704095194527,0.702,42499.0,42498.0,0.65326257]
[1704095195591,0.702,42499.0,42498.0,0.75370257]
[1704095196039,0.702,42499.0,42498.0,0.65326257]
[1704095196467,0.702,42499.0,42498.0,0.75184257]
[1704095196877,0.702,42499.0,42498.0,0.65326257]
[1704095197143,0.702,42499.0,42498.0,0.75256257]
[1704095199097,0.702,42499.0,42498.0,0.65326257]
[1704095199510,0.702,42499.0,42498.0,0.75304257]
[1704095202618,0.702,42499.0,42498.0,0.65326257]
[1704095204948,0.702,42499.0,42498.0,0.75112257]
[1704095205166,0.702,42499.0,42498.0,0.65326257]
[1704095205605,0.702,42499.0,42498.0,0.74902257]
[1704095205814,0.702,42499.0,42498.0,0.65326257]
[1704095206261,0.702,42499.0,42498.0,0.74992257]
[1704095206477,0.702,42499.0,42498.0,0.75992257]
[1704095209305,0.702,42499.0,42498.0,0.85320942]
[1704095210202,0.702,42499.0,42498.0,0.75992257]
[1704095219585,0.702,42499.0,42498.0,0.66326257]
[1704095220895,0.702,42499.0,42498.0,0.76076257]
[1704095221522,0.702,42499.0,42498.0,0.76178257]
[1704095222326,0.702,42499.0,42498.0,0.66326257]
[1704095222725,0.702,42499.0,42498.0,0.76076257]
[1704095223202,0.702,42499.0,42498.0,0.66326257]
[1704095223409,0.702,42499.0,42498.0,0.76076257]
[1704095223718,0.702,42499.0,42498.0,0.66326257]
[1704095224123,0.702,42499.0,42498.0,0.76076257]
[1704095227414,0.702,42499.0,42498.0,0.81706142]
[1704095229354,0.702,42499.0,42498.0,0.84521084]
[1704095229776,0.702,42499.0,42498.0,0.74771084]
[1704095229933,0.702,42499.0,42498.0,0.84533084]
[1704095230338,0.702,42499.0,42498.0,0.90115234]
[1704095230535,0.702,42499.0,42498.0,0.74771084]
[1704095231350,0.702,42499.0,42498.0,0.80282652]
[1704095231722,0.702,42499.0,42498.0,0.89906652]
[1704095239921,0.702,42499.0,42498.0,0.59968106]
[1704095240131,0.702,42499.0,42498.0,0.018]
[1704095241284,0.7,42499.0,42494.0,0.05418]
[1704095241506,0.701,42499.0,42498.0,0.008]
[1704095241715,0.7,42499.0,42495.0,0.23321711]
[1704095241887,0.7,42499.0,42495.0,0.28193711]
[1704095242109,0.7,42499.0,42498.0,0.005]
[1704095242567,0.7,42499.0,42498.0,0.01]
[1704095242749,0.7,42499.0,42498.0,0.005]
[1704095242961,0.7,42499.0,42495.0,0.38132257]
[1704095243353,0.7,42499.0,42498.0,0.002]
[1704095243578,0.701,42499.0,42498.0,0.002]